[Event "10th Iberoamericano-ch 2024"]
[Site "Linares"]
[Date "2024.09.29"]
[Round "7.31"]
[White "Prado Acebo, Ines"]
[Black "Jodorcovsky Werjivker, Paulo"]
[Result "1/2-1/2"]
[ECO "B40"]
[WhiteElo "2189"]
[BlackElo "2092"]
[Annotator "RC"]
[PlyCount "72"]
[EventDate "2024.09.25"]
[EventType "swiss"]
[EventCountry "ESP"]
[SourceTitle "playchess.com"]
[Source "ChessBase"]
[SourceQuality "1"]
[TimeControl "5400+30"]

1. e4 {[%emt 0:00:03]} c5 {[%emt 0:00:13]} 2. Nf3 {[%emt 0:00:09]} Nc6 {[%emt 0:00:05]} 3. d4 {[%emt 0:00:09]} cxd4 {[%emt 0:00:05]} 4. Nxd4 {[%emt 0:00:06]} Nf6 {[%emt 0:00:11]} 5. Nc3 {[%emt 0:00:08]} e6 {[%emt 0:00:05]} 6. a3 {[%emt 0:00:07]} d6 {[%emt 0:00:25]} 7. Be3 {[%emt 0:00:20]} Be7 {[%emt 0:00:14]} 8. h3 {[%emt 0:00:11]} O-O {[%emt 0:00:24]} 9. g4 {[%emt 0:00:16]} d5 {[%emt 0:02:36]} 10. Bg2 {[%emt 0:03:31]} dxe4 {[%emt 0:05:50]} 11. Nxc6 {[%emt 0:04:17]} bxc6 {[%emt 0:00:05]} 12. Qxd8 {[%emt 0:03:36]} Rxd8 {[%emt 0:00:04]} 13. Nxe4 {[%emt 0:00:38]} Ba6 {[%emt 0:16:17]} 14. Nc5 {[%emt 0:08:35]} Bc4 {[%emt 0:00:39]} 15. b3 {[%emt 0:05:21]} Bd5 {[%emt 0:04:03]} 16. f3 {[%emt 0:00:51]} e5 {[%emt 0:06:12]} 17. c4 {[%emt 0:08:57]} Bxc5 {[%emt 0:04:03]} 18. Bxc5 {[%emt 0:00:08]} Be6 {[%emt 0:00:02]} 19. Rd1 {[%emt 0:08:52]} a5 {[%emt 0:00:32]} 20. a4 {[%emt 0:03:01]} Rab8 {[%emt 0:04:14]} 21. Rxd8+ {[%emt 0:04:17]} Rxd8 {[%emt 0:00:09]} 22. f4 {[%emt 0:15:01]} exf4 {[%emt 0:02:00]} 23. O-O {[%emt 0:03:13]} Rb8 {[%emt 0:02:52]} 24. Rf3 {[%emt 0:05:43]} Ne4 {[%emt 0:01:01]} 25. Ba7 {[%emt 0:00:14]} Rb7 {[%emt 0:05:40]} 26. Rxf4 {[%emt 0:02:52]} Nc3 {[%emt 0:07:37]} 27. Rf3 {[%emt 0:00:08]} Rxb3 {[%emt 0:02:26]} 28. Kh2 {[%emt 0:00:21]} Bxc4 {[%emt 0:04:10]} 29. Re3 {[%emt 0:00:23]} Be6 {[%emt 0:06:05]} 30. Bxc6 {[%emt 0:00:19]} Rb2+ {[%emt 0:01:54]} 31. Kg3 {[%emt 0:02:08]} Ne2+ {[%emt 0:01:17]} 32. Kf3 {[%emt 0:00:56]} Ng1+ {[%emt 0:02:22]} 33. Kg3 {[%emt 0:00:30]} Ne2+ {[%emt 0:03:16]} 34. Kf3 {[%emt 0:00:07]} Ng1+ {[%emt 0:12:21]} 35. Kg3 {[%emt 0:00:23]} Ne2+ {[%emt 0:00:38]} 36. Kf3 {[%emt 0:00:08]} Ng1+ {[%emt 0:01:15]} 1/2-1/2

[Event "10th Iberoamericano-ch 2024"]
[Site "Linares"]
[Date "2024.09.29"]
[Round "7.32"]
[White "Rodriguez Redondo, Adhara"]
[Black "Lorente Serrano, Rosa Adela"]
[Result "0-1"]
[ECO "B51"]
[WhiteElo "2184"]
[BlackElo "2087"]
[Annotator "RC"]
[PlyCount "112"]
[EventDate "2024.09.25"]
[EventType "swiss"]
[EventCountry "ESP"]
[SourceTitle "playchess.com"]
[Source "ChessBase"]
[SourceQuality "1"]
[TimeControl "5400+30"]

1. e4 {[%emt 0:00:02]} c5 {[%emt 0:00:39]} 2. Nf3 {[%emt 0:00:07]} d6 {[%emt 0:00:35]} 3. Bb5+ {[%emt 0:00:06]} Nd7 {[%emt 0:00:28]} 4. c3 {[%emt 0:00:31]} a6 {[%emt 0:00:14]} 5. Ba4 {[%emt 0:00:14]} Ngf6 {[%emt 0:00:41]} 6. Bc2 {[%emt 0:00:48]} g6 {[%emt 0:03:41]} 7. d4 {[%emt 0:02:20]} cxd4 {[%emt 0:02:24]} 8. cxd4 {[%emt 0:00:13]} Bg7 {[%emt 0:10:13]} 9. a4 {[%emt 0:11:38]} O-O {[%emt 0:00:52]} 10. O-O {[%emt 0:00:41]} a5 {[%emt 0:11:54]} 11. Nc3 {[%emt 0:03:42]} Nb6 {[%emt 0:01:47]} 12. h3 {[%emt 0:05:20]} Bd7 {[%emt 0:08:02]} 13. Bd3 {[%emt 0:09:48]} Rc8 {[%emt 0:03:44]} 14. Qb3 {[%emt 0:06:20]} Bc6 {[%emt 0:14:33]} 15. Re1 {[%emt 0:09:10]} d5 {[%emt 0:06:06]} 16. e5 {[%emt 0:01:24]} Ne8 {[%emt 0:00:10]} 17. Ne2 {[%emt 0:05:44]} Nc4 {[%emt 0:03:53]} 18. Qd1 {[%emt 0:03:46]} Nc7 {[%emt 0:02:48]} 19. b3 {[%emt 0:02:05]} Nb6 {[%emt 0:00:06]} 20. Bd2 {[%emt 0:02:01]} Ra8 {[%emt 0:01:13]} 21. Nf4 {[%emt 0:03:08]} e6 {[%emt 0:04:24]} 22. h4 {[%emt 0:03:22]} Nd7 {[%emt 0:04:14]} 23. Ng5 {[%emt 0:03:09]} h6 {[%emt 0:07:57]} 24. Nf3 {[%emt 0:02:23]} Na6 {[%emt 0:02:45]} 25. Bxg6 {[%emt 0:06:47]} fxg6 {[%emt 0:00:05]} 26. Nxe6 {[%emt 0:00:15]} Qe7 {[%emt 0:00:36]} 27. Nxf8 {[%emt 0:01:57]} Nxf8 {[%emt 0:00:05]} 28. Bxa5 {[%emt 0:01:44]} Ne6 {[%emt 0:00:07]} 29. Bd2 {[%emt 0:01:01]} Nb4 {[%emt 0:01:20]} 30. Bc3 {[%emt 0:03:19]} Rf8 {[%emt 0:00:52]} 31. g3 {[%emt 0:06:01]} g5 {[%emt 0:02:45]} 32. hxg5 {[%emt 0:00:22]} hxg5 {[%emt 0:01:43]} 33. Nh2 {[%emt 0:00:28]} Be8 {[%emt 0:01:26]} 34. Qd2 {[%emt 0:01:39]} Nc6 {[%emt 0:00:10]} 35. b4 {[%emt 0:00:36]} Qf7 {[%emt 0:01:28]} 36. b5 {[%emt 0:00:40]} Ne7 {[%emt 0:00:05]} 37. Bb4 {[%emt 0:00:30]} Bd7 {[%emt 0:03:22]} 38. Ra3 {[%emt 0:00:55]} Re8 {[%emt 0:00:10]} 39. Bxe7 {[%emt 0:03:04]} Qxe7 {[%emt 0:00:10]} 40. Rf3 {[%emt 0:00:41]} Ra8 {[%emt 0:00:20]} 41. a5 {[%emt 0:02:02]} g4 {[%emt 0:02:10]} 42. Rb3 {[%emt 0:00:28]} Ng5 {[%emt 0:00:24]} 43. e6 {[%emt 0:00:21]} Bxe6 {[%emt 0:00:20]} 44. Nxg4 {[%emt 0:00:42]} Ne4 {[%emt 0:00:21]} 45. Qe2 {[%emt 0:00:51]} Rxa5 {[%emt 0:00:53]} 46. f3 {[%emt 0:00:32]} Bxg4 {[%emt 0:00:06]} 47. fxg4 {[%emt 0:00:08]} Bxd4+ {[%emt 0:00:07]} 48. Kg2 {[%emt 0:00:16]} Qg5 {[%emt 0:01:06]} 49. Rd3 {[%emt 0:00:44]} Bg7 {[%emt 0:00:15]} 50. Rf1 {[%emt 0:00:51]} Rxb5 {[%emt 0:00:48]} 51. Qf3 {[%emt 0:00:30]} Rb2+ {[%emt 0:00:04]} 52. Kg1 Qe7 {[%emt 0:01:13]} 53. Re1 {[%emt 0:01:00]} Qc5+ {[%emt 0:00:08]} 54. Qe3 {[%emt 0:00:27]} Qc2 {[%emt 0:00:35]} 55. Qf3 {[%emt 0:00:29]} Qh2+ {[%emt 0:00:06]} 56. Kf1 {[%emt 0:00:05]} Rf2+ {[%emt 0:00:06]} 0-1

[Event "10th Iberoamericano-ch 2024"]
[Site "Linares"]
[Date "2024.09.29"]
[Round "7.33"]
[White "Rodriguez Lopez, Rafael"]
[Black "Li Chen, Helena Joana"]
[Result "0-1"]
[ECO "A04"]
[WhiteElo "2162"]
[BlackElo "2068"]
[Annotator "RC"]
[PlyCount "108"]
[EventDate "2024.09.25"]
[EventType "swiss"]
[EventCountry "ESP"]
[SourceTitle "playchess.com"]
[Source "ChessBase"]
[SourceQuality "1"]
[TimeControl "5400+30"]

1. Nf3 {[%emt 0:00:04]} f5 {[%emt 0:00:06]} 2. g3 {[%emt 0:00:07]} Nf6 {[%emt 0:00:17]} 3. Bg2 {[%emt 0:00:06]} g6 {[%emt 0:00:06]} 4. b4 {[%emt 0:00:15]} d6 {[%emt 0:02:52]} 5. d4 {[%emt 0:00:05]} Bg7 {[%emt 0:03:25]} 6. Bb2 {[%emt 0:00:06]} O-O {[%emt 0:02:57]} 7. Nbd2 {[%emt 0:00:05]} Ne4 {[%emt 0:01:40]} 8. c4 {[%emt 0:01:53]} c6 {[%emt 0:04:46]} 9. O-O {[%emt 0:01:54]} Qe8 {[%emt 0:06:40]} 10. Ne1 {[%emt 0:18:22]} Nxd2 {[%emt 0:06:46]} 11. Qxd2 {[%emt 0:00:04]} e5 {[%emt 0:02:39]} 12. Nc2 {[%emt 0:05:52]} e4 {[%emt 0:05:13]} 13. f4 {[%emt 0:01:01]} d5 {[%emt 0:05:36]} 14. Ne3 {[%emt 0:00:23]} Be6 {[%emt 0:00:10]} 15. Rfc1 {[%emt 0:00:28]} Qf7 {[%emt 0:04:19]} 16. cxd5 {[%emt 0:01:50]} cxd5 {[%emt 0:00:07]} 17. b5 {[%emt 0:00:05]} a6 {[%emt 0:06:07]} 18. a4 {[%emt 0:01:17]} Qd7 {[%emt 0:04:45]} 19. b6 {[%emt 0:04:27]} Nc6 {[%emt 0:01:17]} 20. a5 {[%emt 0:00:05]} Rac8 {[%emt 0:01:23]} 21. Nd1 {[%emt 0:01:11]} Ne7 {[%emt 0:02:19]} 22. e3 {[%emt 0:00:21]} Rxc1 {[%emt 0:00:31]} 23. Rxc1 {[%emt 0:00:08]} Rc8 {[%emt 0:00:05]} 24. Rxc8+ {[%emt 0:03:13]} Nxc8 {[%emt 0:00:35]} 25. Ba3 {[%emt 0:00:42]} Nd6 {[%emt 0:02:02]} 26. Nb2 {[%emt 0:02:05]} Nc4 {[%emt 0:01:51]} 27. Nxc4 {[%emt 0:00:07]} dxc4 {[%emt 0:00:03]} 28. Qb4 {[%emt 0:00:33]} Qc8 {[%emt 0:02:56]} 29. Kf2 {[%emt 0:02:57]} Bf8 {[%emt 0:01:21]} 30. Qxf8+ {[%emt 0:00:39]} Qxf8 {[%emt 0:00:05]} 31. Bxf8 {[%emt 0:00:05]} Kxf8 {[%emt 0:00:02]} 32. Ke1 {[%emt 0:00:25]} Ke7 {[%emt 0:00:48]} 33. Kd2 {[%emt 0:00:06]} Kd6 {[%emt 0:00:02]} 34. Kc3 {[%emt 0:00:08]} Kc6 {[%emt 0:00:04]} 35. Bf1 {[%emt 0:08:07]} Kb5 {[%emt 0:00:19]} 36. Be2 {[%emt 0:00:15]} Kxa5 {[%emt 0:01:20]} 37. Bxc4 {[%emt 0:00:05]} Bxc4 {[%emt 0:00:05]} 38. Kxc4 {[%emt 0:00:05]} Kxb6 {[%emt 0:00:05]} 39. Kd5 {[%emt 0:00:24]} Kc7 {[%emt 0:00:18]} 40. Ke6 {[%emt 0:00:39]} Kd8 {[%emt 0:00:15]} 41. Kd6 {[%emt 0:00:09]} b5 {[%emt 0:00:55]} 42. Kc5 {[%emt 0:00:05]} Kd7 {[%emt 0:00:06]} 43. Kb4 {[%emt 0:00:08]} Kd6 {[%emt 0:00:06]} 44. Ka5 {[%emt 0:00:20]} Kc6 {[%emt 0:00:06]} 45. Kb4 {[%emt 0:00:06]} Kd5 {[%emt 0:00:06]} 46. Kc3 {[%emt 0:00:19]} a5 {[%emt 0:00:10]} 47. Kb3 {[%emt 0:00:04]} b4 {[%emt 0:00:05]} 48. Kb2 {[%emt 0:00:11]} Kc4 {[%emt 0:00:36]} 49. Kc2 {[%emt 0:00:05]} a4 {[%emt 0:00:05]} 50. Kb2 {[%emt 0:00:04]} a3+ {[%emt 0:00:15]} 51. Kc2 {[%emt 0:00:22]} b3+ {[%emt 0:00:20]} 52. Kb1 {[%emt 0:00:29]} Kc3 {[%emt 0:00:16]} 53. d5 {[%emt 0:00:10]} a2+ {[%emt 0:00:12]} 54. Ka1 {[%emt 0:00:05]} Kc2 {[%emt 0:00:08]} 0-1

[Event "10th Iberoamericano-ch 2024"]
[Site "Linares"]
[Date "2024.09.29"]
[Round "7.34"]
[White "Sicilia Laino, Juan Diego"]
[Black "Rocha, Maximiliano"]
[Result "0-1"]
[ECO "C50"]
[WhiteElo "2090"]
[BlackElo "2156"]
[Annotator "RC"]
[PlyCount "147"]
[EventDate "2024.09.25"]
[EventType "swiss"]
[EventCountry "ESP"]
[SourceTitle "playchess.com"]
[Source "ChessBase"]
[SourceQuality "1"]
[TimeControl "5400+30"]

1. e4 {[%emt 0:00:03]} e5 {[%emt 0:00:30]} 2. Nf3 {[%emt 0:00:07]} Nc6 {[%emt 0:00:23]} 3. Bc4 {[%emt 0:00:09]} Be7 {[%emt 0:00:22]} 4. O-O {[%emt 0:01:30]} Nf6 {[%emt 0:00:05]} 5. d3 {[%emt 0:00:40]} d6 {[%emt 0:00:27]} 6. a4 {[%emt 0:00:22]} O-O {[%emt 0:00:29]} 7. a5 {[%emt 0:00:10]} a6 {[%emt 0:01:15]} 8. c3 {[%emt 0:00:40]} Be6 {[%emt 0:05:17]} 9. Bb3 {[%emt 0:00:53]} d5 {[%emt 0:00:48]} 10. exd5 {[%emt 0:00:18]} Nxd5 {[%emt 0:05:24]} 11. Re1 {[%emt 0:00:41]} Bf6 {[%emt 0:00:20]} 12. Bc2 {[%emt 0:21:53]} Re8 {[%emt 0:00:26]} 13. Nbd2 {[%emt 0:00:19]} Bf5 {[%emt 0:11:18]} 14. Ne4 {[%emt 0:03:12]} Be7 {[%emt 0:01:10]} 15. Ng3 {[%emt 0:03:28]} Be6 {[%emt 0:29:27]} 16. Nxe5 {[%emt 0:02:21]} Nxe5 {[%emt 0:00:58]} 17. Rxe5 {[%emt 0:00:03]} Bd6 {[%emt 0:00:00]} 18. Re1 {[%emt 0:00:48]} c6 {[%emt 0:00:13]} 19. d4 {[%emt 0:00:25]} Bc7 {[%emt 0:02:25]} 20. Qd3 {[%emt 0:03:56]} g6 {[%emt 0:01:09]} 21. Qd2 {[%emt 0:08:06]} Bf4 {[%emt 0:06:53]} 22. Qd1 {[%emt 0:00:48]} Bc7 {[%emt 0:10:23]} 23. Ne4 {[%emt 0:07:23]} Bf5 {[%emt 0:03:57]} 24. Bg5 {[%emt 0:00:27]} Qd7 {[%emt 0:00:20]} 25. c4 {[%emt 0:07:17]} Bxe4 {[%emt 0:01:14]} 26. Bxe4 {[%emt 0:00:09]} Ne7 {[%emt 0:04:32]} 27. g3 {[%emt 0:04:51]} Nc8 {[%emt 0:02:26]} 28. d5 {[%emt 0:04:06]} c5 {[%emt 0:00:20]} 29. Bc2 {[%emt 0:03:26]} Nd6 {[%emt 0:02:59]} 30. Ba4 {[%emt 0:03:10]} Rxe1+ {[%emt 0:00:14]} 31. Qxe1 {[%emt 0:00:06]} Qf5 {[%emt 0:01:06]} 32. Qe7 {[%emt 0:02:48]} Ne4 {[%emt 0:03:06]} 33. Be3 {[%emt 0:01:06]} Bd6 {[%emt 0:02:13]} 34. Qh4 {[%emt 0:04:50]} Qe5 {[%emt 0:00:45]} 35. Rd1 {[%emt 0:04:12]} Nf6 {[%emt 0:04:12]} 36. Bf4 {[%emt 0:01:17]} Qe7 {[%emt 0:00:03]} 37. Bg5 Kg7 38. Kf1 {[%emt 0:01:33]} Qe5 {[%emt 0:00:01]} 39. Bh6+ {[%emt 0:02:13]} Kg8 {[%emt 0:00:03]} 40. Bf4 {[%emt 0:00:07]} Qe7 {[%emt 0:00:24]} 41. Re1 {[%emt 0:00:08]} Qd8 {[%emt 0:00:01]} 42. Bg5 {[%emt 0:00:32]} Qxa5 {[%emt 0:00:21]} 43. Bxf6 {[%emt 0:01:42]} Qxa4 {[%emt 0:00:08]} 44. Be7 {[%emt 0:01:23]} Bxe7 {[%emt 0:00:54]} 45. Rxe7 {[%emt 0:00:02]} b5 {[%emt 0:00:00]} 46. Qf4 {[%emt 0:02:47]} Qxc4+ {[%emt 0:00:52]} 47. Qxc4 {[%emt 0:00:01]} bxc4 {[%emt 0:00:01]} 48. Rc7 {[%emt 0:00:01]} Rb8 {[%emt 0:00:40]} 49. Rxc5 {[%emt 0:01:11]} Rxb2 {[%emt 0:00:10]} 50. Rxc4 {[%emt 0:00:18]} Kf8 {[%emt 0:00:24]} 51. Ke1 {[%emt 0:01:57]} Rb5 {[%emt 0:00:44]} 52. Rd4 {[%emt 0:00:39]} Ke7 {[%emt 0:00:02]} 53. Ra4 {[%emt 0:00:34]} a5 {[%emt 0:00:14]} 54. Ke2 {[%emt 0:00:22]} Kd6 {[%emt 0:00:50]} 55. Ke3 {[%emt 0:00:14]} Rxd5 {[%emt 0:00:05]} 56. Ke4 {[%emt 0:00:09]} Rb5 {[%emt 0:00:09]} 57. Rd4+ {[%emt 0:01:56]} Ke6 {[%emt 0:00:13]} 58. Rd8 {[%emt 0:00:06]} h5 {[%emt 0:01:23]} 59. h4 {[%emt 0:01:34]} Rb2 {[%emt 0:00:22]} 60. Ke3 {[%emt 0:00:10]} a4 {[%emt 0:00:12]} 61. Rd4 {[%emt 0:01:06]} Rb3+ {[%emt 0:01:14]} 62. Ke2 {[%emt 0:00:17]} a3 {[%emt 0:00:07]} 63. Ra4 {[%emt 0:00:08]} Kd5 {[%emt 0:00:01]} 64. Kd2 {[%emt 0:01:35]} Kc5 {[%emt 0:00:35]} 65. Kc2 {[%emt 0:02:07]} Rf3 {[%emt 0:00:03]} 66. Kc1 {[%emt 0:00:58]} Kb5 {[%emt 0:00:07]} 67. Ra8 {[%emt 0:00:14]} Kb4 {[%emt 0:00:01]} 68. Rb8+ {[%emt 0:01:37]} Ka4 {[%emt 0:00:12]} 69. Ra8+ {[%emt 0:00:13]} Kb3 {[%emt 0:00:01]} 70. Rb8+ {[%emt 0:00:01]} Ka2 {[%emt 0:00:23]} 71. Rb7 {[%emt 0:00:26]} Rxf2 {[%emt 0:00:07]} 72. Rc7 {[%emt 0:00:10]} Kb3 {[%emt 0:00:16]} 73. Rb7+ {[%emt 0:00:06]} Kc3 {[%emt 0:00:04]} 74. Rc7+ {[%emt 0:00:03]} 0-1

[Event "10th Iberoamericano-ch 2024"]
[Site "Linares"]
[Date "2024.09.29"]
[Round "7.35"]
[White "Galvan Cipriani, Viviana"]
[Black "Follana Albelda, Lucia"]
[Result "1-0"]
[ECO "A20"]
[WhiteElo "2141"]
[BlackElo "2043"]
[Annotator "RC"]
[PlyCount "125"]
[EventDate "2024.09.25"]
[EventType "swiss"]
[EventCountry "ESP"]
[SourceTitle "playchess.com"]
[Source "ChessBase"]
[SourceQuality "1"]
[TimeControl "5400+30"]

1. c4 {[%emt 0:04:28]} e5 {[%emt 0:01:12]} 2. g3 {[%emt 0:00:53]} c6 {[%emt 0:00:15]} 3. d4 {[%emt 0:01:33]} e4 {[%emt 0:06:26]} 4. Nc3 {[%emt 0:01:58]} d5 {[%emt 0:00:52]} 5. cxd5 {[%emt 0:06:59]} cxd5 {[%emt 0:00:08]} 6. Qb3 {[%emt 0:00:09]} Ne7 {[%emt 0:13:22]} 7. Bf4 {[%emt 0:17:13]} a6 {[%emt 0:05:43]} 8. Na4 {[%emt 0:11:20]} Nec6 {[%emt 0:05:03]} 9. Rd1 {[%emt 0:11:33]} Bb4+ {[%emt 0:11:25]} 10. Nc3 {[%emt 0:00:06]} O-O {[%emt 0:00:53]} 11. h4 {[%emt 0:00:22]} b5 {[%emt 0:08:24]} 12. Bh3 {[%emt 0:06:13]} Be6 {[%emt 0:01:43]} 13. Bxe6 {[%emt 0:01:08]} fxe6 {[%emt 0:00:07]} 14. Nh3 {[%emt 0:00:38]} Qe7 {[%emt 0:04:49]} 15. O-O {[%emt 0:01:31]} Kh8 {[%emt 0:17:40]} 16. a3 {[%emt 0:09:22]} Bd6 {[%emt 0:00:20]} 17. Bxd6 {[%emt 0:05:29]} Qxd6 {[%emt 0:00:11]} 18. Nf4 {[%emt 0:00:08]} Nd7 {[%emt 0:01:16]} 19. e3 {[%emt 0:00:57]} Rab8 {[%emt 0:04:19]} 20. Rc1 {[%emt 0:04:21]} Rf5 {[%emt 0:05:45]} 21. Rfd1 {[%emt 0:08:11]} Nf6 {[%emt 0:02:54]} 22. Qc2 {[%emt 0:00:58]} Ne7 {[%emt 0:01:05]} 23. Na2 {[%emt 0:02:39]} Rc8 {[%emt 0:03:39]} 24. Qxc8+ {[%emt 0:01:23]} Nxc8 {[%emt 0:00:03]} 25. Rxc8+ {[%emt 0:00:03]} Ng8 {[%emt 0:00:08]} 26. Rdc1 {[%emt 0:00:29]} g5 {[%emt 0:01:58]} 27. R1c6 {[%emt 0:01:10]} Qd7 {[%emt 0:00:12]} 28. R6c7 {[%emt 0:01:46]} Qd6 {[%emt 0:00:20]} 29. hxg5 {[%emt 0:01:13]} Rxg5 {[%emt 0:00:07]} 30. Nb4 {[%emt 0:00:39]} e5 {[%emt 0:03:22]} 31. Rc6 {[%emt 0:00:31]} Qd7 {[%emt 0:00:25]} 32. dxe5 {[%emt 0:00:35]} Rxe5 {[%emt 0:01:18]} 33. R6c7 {[%emt 0:00:30]} Qg4 {[%emt 0:00:11]} 34. Rc1 {[%emt 0:00:24]} d4 {[%emt 0:00:29]} 35. exd4 {[%emt 0:00:22]} Rg5 {[%emt 0:00:26]} 36. Nbd5 {[%emt 0:00:23]} e3 {[%emt 0:00:24]} 37. R8c3 {[%emt 0:00:37]} exf2+ {[%emt 0:00:55]} 38. Kxf2 {[%emt 0:00:06]} Qd7 {[%emt 0:00:58]} 39. Rc7 {[%emt 0:00:24]} Qg4 {[%emt 0:00:21]} 40. R7c3 {[%emt 0:00:25]} Rg7 {[%emt 0:00:41]} 41. Rf3 {[%emt 0:00:47]} h6 {[%emt 0:00:36]} 42. Rh1 {[%emt 0:01:00]} Qc8 {[%emt 0:00:31]} 43. Rc3 {[%emt 0:00:27]} Qd7 {[%emt 0:00:20]} 44. Rf3 {[%emt 0:00:24]} a5 {[%emt 0:00:24]} 45. Rd3 {[%emt 0:00:23]} Qd6 {[%emt 0:00:37]} 46. b4 {[%emt 0:00:38]} axb4 {[%emt 0:00:06]} 47. axb4 {[%emt 0:00:03]} Ne7 {[%emt 0:00:42]} 48. Nxe7 {[%emt 0:00:10]} Rxe7 {[%emt 0:00:04]} 49. d5 {[%emt 0:01:11]} Kh7 {[%emt 0:00:37]} 50. Rhd1 {[%emt 0:00:46]} Re4 {[%emt 0:00:36]} 51. Rd4 {[%emt 0:00:25]} Re7 {[%emt 0:00:41]} 52. R1d2 {[%emt 0:00:28]} Ra7 {[%emt 0:00:23]} 53. Re2 {[%emt 0:00:30]} Qb6 {[%emt 0:00:46]} 54. Ne6 {[%emt 0:00:09]} Rf7+ {[%emt 0:00:22]} 55. Kg2 {[%emt 0:00:11]} Rf6 {[%emt 0:00:50]} 56. Nc5 {[%emt 0:00:26]} Qb8 {[%emt 0:00:34]} 57. Nd7 {[%emt 0:00:13]} Qa7 {[%emt 0:00:29]} 58. Nxf6+ {[%emt 0:00:08]} Kg6 {[%emt 0:00:02]} 59. Rf4 {[%emt 0:00:12]} h5 {[%emt 0:00:09]} 60. Ne4 {[%emt 0:00:35]} Qd4 {[%emt 0:00:26]} 61. d6 {[%emt 0:00:32]} Qxb4 {[%emt 0:00:19]} 62. d7 {[%emt 0:00:05]} Qa5 {[%emt 0:00:23]} 63. Rf8 {[%emt 0:00:16]} 1-0

[Event "10th Iberoamericano-ch 2024"]
[Site "Linares"]
[Date "2024.09.29"]
[Round "7.36"]
[White "Zapata Campos, Lidia Karen"]
[Black "Fernandez Sanchez, Fernando Miguel"]
[Result "0-1"]
[ECO "A48"]
[WhiteElo "2029"]
[BlackElo "2399"]
[Annotator "RC"]
[PlyCount "65"]
[EventDate "2024.09.25"]
[EventType "swiss"]
[EventCountry "ESP"]
[SourceTitle "playchess.com"]
[Source "ChessBase"]
[SourceQuality "1"]
[TimeControl "5400+30"]

1. d4 {[%emt 0:06:00]} Nf6 {[%emt 0:04:35]} 2. Nf3 {[%emt 0:00:17]} g6 {[%emt 0:00:26]} 3. Bf4 {[%emt 0:01:11]} Bg7 {[%emt 0:00:07]} 4. e3 {[%emt 0:01:10]} O-O {[%emt 0:00:10]} 5. c4 {[%emt 0:00:18]} c5 {[%emt 0:05:39]} 6. Nc3 {[%emt 0:03:42]} cxd4 {[%emt 0:00:09]} 7. exd4 {[%emt 0:00:04]} d5 {[%emt 0:00:20]} 8. Qd2 {[%emt 0:03:51]} Nc6 {[%emt 0:20:24]} 9. Ne5 {[%emt 0:06:24]} Bf5 {[%emt 0:10:23]} 10. Be2 {[%emt 0:04:24]} dxc4 {[%emt 0:00:37]} 11. Nxc6 {[%emt 0:01:28]} bxc6 {[%emt 0:00:04]} 12. Bxc4 {[%emt 0:01:53]} Ne4 {[%emt 0:03:34]} 13. Nxe4 {[%emt 0:05:29]} Bxe4 {[%emt 0:00:03]} 14. f3 {[%emt 0:01:40]} Bd5 {[%emt 0:06:41]} 15. Rc1 {[%emt 0:02:14]} Qb6 {[%emt 0:02:35]} 16. Bxd5 {[%emt 0:08:34]} cxd5 {[%emt 0:00:30]} 17. Be3 {[%emt 0:00:27]} Qa6 {[%emt 0:00:11]} 18. b3 {[%emt 0:01:26]} Rfc8 {[%emt 0:00:57]} 19. Kf2 {[%emt 0:00:10]} Qa3 {[%emt 0:01:43]} 20. Rhe1 {[%emt 0:11:15]} a5 {[%emt 0:01:36]} 21. Rc5 {[%emt 0:02:11]} Rxc5 {[%emt 0:17:17]} 22. dxc5 {[%emt 0:00:06]} d4 {[%emt 0:00:12]} 23. Bg5 Qxc5 {[%emt 0:01:47]} 24. Bxe7 {[%emt 0:02:17]} Qd5 {[%emt 0:00:30]} 25. Qf4 {[%emt 0:10:32]} Qe6 {[%emt 0:07:03]} 26. Qg5 {[%emt 0:01:27]} Qc6 {[%emt 0:03:32]} 27. Rc1 Qd7 {[%emt 0:01:56]} 28. Ba3 {[%emt 0:14:10]} d3 {[%emt 0:00:30]} 29. Rd1 {[%emt 0:06:09]} Re8 {[%emt 0:07:55]} 30. Qxa5 {[%emt 0:01:23]} h5 {[%emt 0:03:19]} 31. Qa6 {[%emt 0:05:07]} Qd4+ {[%emt 0:00:16]} 32. Kf1 g5 33. Qa5 0-1